bitfinex/quotes_SOLUSD_20250908
["timestamp","ask_amount","ask_price","bid_price","bid_amount"]
[1757372534767,3.56093013,214.66,214.65,36.53]
[1757372535547,0.09000534,214.66,214.65,36.53]
[1757372535755,0.09000534,214.66,214.65,41.18874679]
[1757372538264,0.09000534,214.66,214.65,36.53]
[1757372538770,0.09000534,214.66,214.65,41.18874679]
[1757372541558,0.1881791,214.66,214.65,41.18874679]
[1757372543375,0.09817376,214.66,214.65,41.18874679]
[1757372550584,0.09995122,214.67,214.65,41.7477964]
[1757372550769,0.09995122,214.67,214.66,0.7]
[1757372551785,0.09995122,214.67,214.66,36.48]
[1757372552477,0.09995122,214.67,214.66,41.13852976]
[1757372552674,0.09995122,214.67,214.66,5.35852976]
[1757372552980,0.09995122,214.67,214.66,36.48]
[1757372556983,0.09995122,214.67,214.66,35.76]
[1757372557380,0.09995122,214.67,214.65,0.03]
[1757372557683,0.77995122,214.67,214.66,35.76]
[1757372557859,0.77995122,214.67,214.65,0.03]
[1757372558063,0.77995122,214.67,214.66,35.76]
[1757372558488,5.43831861,214.67,214.66,35.76]
[1757372558886,5.43831861,214.67,214.65,0.03]
[1757372559184,8.18821302,214.67,214.66,35.76]
[1757372559985,16.37642604,214.67,214.66,35.76]
[1757372560384,29.97202005,214.67,214.65,0.03]
[1757372560574,2.74989441,214.66,214.65,0.03]
[1757372560774,2.74989441,214.66,214.65,35.79]
[1757372560989,0.66,214.66,214.65,35.79]
[1757372561190,5.31852976,214.66,214.65,35.79]
[1757372561588,5.40408758,214.66,214.65,35.79]
[1757372561973,21.749576,214.66,214.65,35.79]
[1757372563197,35.72939846,214.66,214.65,35.79]
[1757372564396,37.27598237,214.66,214.65,35.79]
[1757372565782,14.06538028,214.66,214.65,35.79]
[1757372565998,0.08555782,214.66,214.65,36.45]
[1757372566300,0.08555782,214.66,214.65,35.79]
[1757372568297,0.08555782,214.66,214.65,36.45]
[1757372568597,0.08555782,214.66,214.65,35.79]
[1757372571710,4.74408758,214.66,214.65,35.79]
[1757372573710,18.72325862,214.66,214.65,35.79]
[1757372578613,22.84455579,214.66,214.65,35.79]
[1757372578819,22.18455579,214.66,214.65,35.79]
[1757372578999,22.24455579,214.66,214.65,35.79]
[1757372580214,18.78325862,214.66,214.65,35.79]
[1757372580727,18.78325862,214.66,214.65,36.45]
[1757372581111,32.37885263,214.66,214.65,35.79]
[1757372581435,18.78325862,214.66,214.65,35.79]
[1757372581721,18.78325862,214.66,214.65,36.45]
[1757372582819,18.78325862,214.66,214.65,35.79]
[1757372583531,18.6977008,214.66,214.65,35.79]
[1757372586620,37.24977313,214.66,214.65,35.79]
[1757372586825,40.7121649,214.66,214.65,35.79]
[1757372588826,40.0521649,214.66,214.65,35.79]
[1757372589319,35.75568658,214.66,214.65,35.79]
[1757372590821,35.75568658,214.66,214.65,36.44]
[1757372591323,35.75568658,214.66,214.65,35.79]
[1757372591525,35.75568658,214.66,214.65,0.03]
[1757372591712,35.75568658,214.66,214.65,35.79]
[1757372591903,35.75568658,214.66,214.65,0.03]
[1757372592105,35.75568658,214.66,214.65,35.79]
[1757372593628,35.75568658,214.66,214.65,36.44]
[1757372594223,35.75568658,214.66,214.65,35.79]
[1757372594523,32.29329481,214.66,214.65,36.44]
[1757372594727,35.75887664,214.66,214.65,35.79]
[1757372595326,35.75887664,214.66,214.65,0.03]
[1757372595624,35.75936171,214.66,214.65,35.79]
[1757372595831,32.29329481,214.66,214.65,36.44]
[1757372596026,18.6977008,214.66,214.65,36.44]
[1757372597207,22.16492835,214.66,214.65,36.44]
[1757372598428,22.16492835,214.66,214.65,35.79]
[1757372601025,22.16492835,214.66,214.65,0.03]
[1757372601233,40.73700068,214.66,214.65,35.79]
[1757372602227,40.05700068,214.66,214.65,35.79]
[1757372603317,35.76052236,214.66,214.65,0.03]
[1757372603524,35.76052236,214.66,214.65,35.79]
[1757372603917,35.76052236,214.66,214.65,0.03]
[1757372604120,35.76052236,214.66,214.65,35.79]
[1757372604930,40.05700068,214.66,214.65,35.79]
[1757372605321,40.05700068,214.66,214.65,0.03]
[1757372605537,40.05700068,214.66,214.65,35.79]
[1757372606334,40.05700068,214.66,214.65,0.03]
[1757372606532,40.05700068,214.66,214.65,35.79]
[1757372607042,35.76052236,214.66,214.65,36.44]
[1757372613122,21.78135132,214.66,214.65,36.44]
[1757372616050,8.18575731,214.66,214.65,36.44]
[1757372616346,3.52722755,214.66,214.65,36.44]
[1757372622548,0.06,214.7,214.68,26.0]
[1757372622735,3.47394277,214.74,214.69,36.45]
[1757372622934,0.2,214.77,214.7,0.71]
[1757372623141,3.46943384,214.76,214.7,0.71]
[1757372623343,0.2,214.77,214.7,0.71]
[1757372624028,0.2,214.77,214.71,4.65744492]
[1757372624248,0.2,214.77,214.72,0.71]
[1757372624452,0.2,214.77,214.73,35.74]
[1757372624632,0.2,214.77,214.74,0.71]
[1757372625139,0.2,214.77,214.74,4.52250768]
[1757372625538,0.2,214.77,214.76,26.0]
[1757372625739,3.46204518,214.85,214.76,26.0]
[1757372626040,4.29647832,214.91,214.74,3.81250768]
[1757372626041,3.46645086,214.89,214.8,30.65530726]
[1757372626240,4.95647832,214.91,214.81,36.45]
[1757372626547,16.28696009,214.9,214.82,0.71]
[1757372626929,4.65332712,214.9,214.82,0.71]
[1757372627131,13.59559401,214.89,214.83,35.74]
[1757372627352,0.66,214.88,214.83,35.74]
[1757372627739,13.59559401,214.89,214.84,0.71]
[1757372628051,4.65376023,214.88,214.84,0.71]
[1757372628532,16.28816082,214.88,214.84,0.71]
[1757372628737,16.94816082,214.88,214.85,35.74]
[1757372629054,16.94816082,214.88,214.82,0.71]
[1757372629359,16.94816082,214.88,214.83,35.74]
[1757372629554,16.94816082,214.88,214.83,36.45]
[1757372630555,16.28816082,214.88,214.77,26.0]
[1757372630759,2.74337685,214.86,214.8,0.71]
[1757372631852,7.39757027,214.86,214.8,0.71]
[1757372632049,19.03305384,214.86,214.8,0.71]
[1757372632252,2.74337685,214.85,214.8,0.71]
[1757372632562,0.66,214.84,214.81,35.72]
[1757372633649,0.66,214.84,214.82,35.72]
[1757372634055,4.65484336,214.83,214.82,35.72]
[1757372634841,4.65484336,214.83,214.8,0.71]
[1757372635246,4.65484336,214.83,214.81,35.72]
[1757372639055,3.40337685,214.82,214.77,0.74]
[1757372639247,0.66,214.82,214.78,35.72]
[1757372639452,4.65484336,214.83,214.79,0.71]
[1757372639653,16.29119343,214.84,214.79,0.71]
[1757372639852,19.69457028,214.84,214.8,0.71]
[1757372641659,4.65429776,214.86,214.81,0.71]
[1757372642859,3.40337685,214.85,214.78,0.71]
[1757372643047,2.74337685,214.84,214.79,35.72]
[1757372643245,0.66,214.83,214.79,35.72]
[1757372643564,0.66,214.82,214.79,35.72]
[1757372643780,2.74337685,214.8,214.77,0.03]
[1757372643950,2.74337685,214.8,214.78,35.72]
[1757372644450,0.66,214.79,214.78,35.72]
[1757372644834,4.65571022,214.79,214.78,35.72]
[1757372645971,4.6554606,214.81,214.78,36.43]
[1757372646262,4.6554606,214.81,214.78,35.72]
[1757372646845,19.03702934,214.81,214.78,35.72]
[1757372647045,0.66,214.8,214.78,35.72]
[1757372647458,19.03702934,214.81,214.78,35.72]
[1757372647659,19.69702934,214.81,214.78,35.72]
[1757372648051,16.95365249,214.81,214.78,35.72]
[1757372648248,19.69702934,214.81,214.78,35.72]
[1757372648547,19.03702934,214.81,214.78,35.72]
[1757372648973,16.29365249,214.81,214.78,36.43]
[1757372649271,4.6554606,214.81,214.78,36.43]
[1757372649846,4.6554606,214.81,214.79,0.71]
[1757372650045,18.62379262,214.83,214.79,0.71]
[1757372650265,13.96875655,214.83,214.79,0.71]
[1757372650571,4.65456419,214.85,214.79,0.71]
[1757372650752,0.06,214.86,214.79,0.71]
[1757372651072,0.06,214.86,214.8,4.65549348]
[1757372651268,0.06,214.86,214.81,0.71]
[1757372652159,0.06,214.86,214.82,4.65506005]
[1757372652367,0.06,214.86,214.83,36.43]
[1757372652768,0.06,214.86,214.84,0.71]
[1757372653170,0.06,214.86,214.83,35.72]
[1757372653364,0.06,214.86,214.85,0.71]
[1757372655157,0.06,214.86,214.83,35.72]
[1757372655356,0.06,214.86,214.84,0.71]
[1757372655780,0.06,214.86,214.85,0.71]
[1757372659475,0.06,214.86,214.85,5.36441005]
[1757372660787,0.06,214.89,214.85,17.00043518]
[1757372661078,0.06,214.89,214.86,0.71]
[1757372661258,0.06,214.89,214.87,35.7]
[1757372661459,0.06,214.89,214.88,0.71]
[1757372662893,0.06,214.89,214.85,26.71]
[1757372663065,0.06,214.89,214.86,35.7]
[1757372663389,0.69,214.88,214.83,0.71]
[1757372663597,0.69,214.88,214.84,35.7]
[1757372663774,0.06,214.89,214.84,36.41]
[1757372664083,0.75,214.89,214.84,36.41]
[1757372664402,5.34376023,214.88,214.84,35.7]
[1757372664761,4.65376023,214.88,214.84,35.7]
[1757372664989,4.65376023,214.88,214.85,0.71]
[1757372665365,4.71354367,214.89,214.85,0.71]
[1757372665565,5.40354367,214.89,214.85,0.71]
[1757372666563,5.3439421,214.88,214.84,35.7]
[1757372666780,4.6539421,214.88,214.84,36.41]
[1757372667172,4.71355164,214.89,214.85,0.71]
[1757372667381,4.71355164,214.89,214.86,0.71]
[1757372667999,0.06,214.88,214.87,0.71]
[1757372668164,0.06,214.88,214.87,36.41]
[1757372668365,0.06,214.88,214.87,35.7]
[1757372670878,0.75,214.88,214.87,35.7]
[1757372671080,0.06,214.88,214.87,35.7]
[1757372674584,0.06,214.88,214.87,36.41]
[1757372674982,0.06,214.88,214.87,35.7]
[1757372676580,0.06,214.88,214.87,36.41]
[1757372680783,0.06,214.88,214.87,35.7]
[1757372682104,0.06,214.88,214.87,36.4]
[1757372684401,0.06,214.88,214.87,41.05397682]
[1757372689109,0.06,214.88,214.87,35.7]
[1757372689302,0.06,214.88,214.87,36.4]
[1757372690598,0.06,214.88,214.87,35.7]
[1757372690794,0.76,214.88,214.87,35.7]
[1757372691000,0.06,214.88,214.87,35.7]
[1757372692821,0.76,214.88,214.87,35.7]
[1757372693019,0.06,214.88,214.87,35.7]
[1757372693398,0.06,214.88,214.87,36.4]
[1757372696520,0.06,214.88,214.87,35.7]
[1757372696915,3.53602704,214.88,214.87,35.7]
[1757372697117,3.53691136,214.88,214.87,35.7]
[1757372697725,0.06,214.88,214.87,36.4]
[1757372698102,0.06,214.88,214.87,26.7]
[1757372698320,0.06,214.88,214.87,26.0]
[1757372698518,5.04443658,214.88,214.86,0.03]
[1757372698715,7.76131151,214.87,214.86,0.03]
[1757372699114,7.46131151,214.87,214.86,35.73]
[1757372700416,12.11528833,214.87,214.86,35.73]
[1757372704843,2.47687493,214.87,214.86,36.43]
[1757372705019,0.06,214.88,214.86,36.43]
[1757372705332,0.06,214.88,214.87,0.7]
[1757372707019,0.06,214.88,214.87,5.35397682]
[1757372707417,0.06,214.88,214.87,36.42]
[1757372707649,0.06,214.88,214.87,0.7]
[1757372707829,0.06,214.88,214.87,36.42]
[1757372708019,0.06,214.88,214.87,0.7]
[1757372708214,0.06,214.88,214.87,36.42]
[1757372708420,0.06,214.88,214.87,35.72]
[1757372708824,0.06,214.88,214.87,36.42]
[1757372710536,0.06,214.88,214.87,35.72]
[1757372712035,0.06,214.88,214.86,0.03]
[1757372712241,0.71,214.87,214.86,0.03]
[1757372712423,0.71,214.87,214.86,33.77]
[1757372712936,0.06,214.88,214.86,33.77]
[1757372713118,0.71,214.87,214.86,33.77]
[1757372714043,5.36397682,214.87,214.86,33.77]
[1757372714742,4.65397682,214.87,214.86,33.77]
[1757372715647,4.71377988,214.88,214.86,33.77]
[1757372715853,0.06,214.88,214.87,0.66]
[1757372716024,3.53381529,214.88,214.87,0.66]
[1757372716224,0.06,214.88,214.87,0.66]
[1757372717728,0.06,214.88,214.87,5.31397682]
[1757372724055,0.06,214.88,214.87,5.87245403]
[1757372724462,0.06,214.89,214.87,5.87245403]
[1757372724646,0.06,214.89,214.88,0.66]
[1757372724949,0.06,214.91,214.89,13.59559401]
[1757372725161,0.06,214.91,214.9,50.55399326]
[1757372725343,0.06,214.93,214.91,13.59559401]
[1757372725542,0.06,214.93,214.92,4.6528941]
[1757372725733,0.06,214.93,214.92,5.3128941]
[1757372726352,0.71,215.05,214.98,26.0]
[1757372726654,0.71,215.05,214.99,35.76]
[1757372727845,0.71,215.04,214.96,0.66]
[1757372728062,4.99443658,215.04,214.96,0.66]
[1757372728244,4.99443658,215.04,214.97,35.82]
[1757372728448,0.71,215.03,214.97,35.82]
[1757372728641,0.71,215.02,214.97,35.82]
[1757372728962,0.71,215.01,214.97,35.82]
[1757372729553,0.71,215.01,214.97,36.48]
[1757372729863,0.71,215.01,214.97,41.13179163]
[1757372730045,5.36062087,215.03,214.97,41.13179163]
[1757372732758,5.36062087,215.03,214.98,0.66]
[1757372732945,0.71,215.03,214.97,35.82]
[1757372733136,134.5,215.09,214.99,0.66]
[1757372733137,0.71,215.05,214.99,0.66]
[1757372733342,0.71,215.05,215.0,35.8]
[1757372733539,0.71,215.05,215.0,36.46]
[1757372733740,0.71,215.05,215.0,35.8]
[1757372734041,0.71,215.05,215.01,0.66]
[1757372734441,0.71,215.07,215.02,0.66]
[1757372734757,0.71,215.07,215.03,35.78]
[1757372735132,0.71,215.07,215.03,36.44]
[1757372735336,135.21,215.09,215.03,36.44]
[1757372736366,0.06,215.06,215.03,36.44]
[1757372737265,134.83,215.09,215.03,36.44]
[1757372738756,134.12,215.09,215.04,0.66]
[1757372738947,0.1,215.1,215.05,0.66]
[1757372739142,0.81,215.1,215.05,0.66]
[1757372739344,0.1,215.1,215.05,0.66]
[1757372739562,0.71,215.09,215.05,0.66]
[1757372739770,0.71,215.08,215.03,0.66]
[1757372739942,0.71,215.08,215.06,35.8]
[1757372740949,0.67,215.08,215.06,35.8]
[1757372741156,0.77,215.1,215.06,35.8]
[1757372741364,0.67,215.09,215.06,35.8]
[1757372742158,0.67,215.08,215.07,35.8]
[1757372742360,4.38443658,215.1,215.07,35.8]
[1757372742361,0.77,215.1,215.07,35.8]
[1757372742560,0.67,215.09,215.07,35.8]
[1757372742759,0.67,215.08,215.07,35.8]
[1757372742963,4.95443658,215.08,215.07,35.78]
[1757372746579,0.67,215.08,215.07,35.78]
[1757372749373,0.1,215.1,215.07,36.47]
[1757372749875,0.77,215.1,215.07,35.78]
[1757372750964,0.1,215.1,215.07,36.47]
[1757372751476,0.1,215.1,215.07,35.78]
[1757372751686,0.1,215.1,215.08,0.69]
[1757372752779,0.1,215.1,215.09,0.69]
[1757372756668,0.1,215.1,215.07,36.5]
[1757372756867,3.4081773,215.09,215.07,0.03]
[1757372757076,3.4081773,215.09,215.08,35.76]
[1757372758180,0.67,215.09,215.08,35.76]
[1757372758879,3.4081773,215.09,215.08,35.76]
[1757372759479,0.67,215.09,215.08,35.76]
[1757372760678,3.4081773,215.09,215.08,35.76]
[1757372762277,2.8381773,215.1,215.08,35.76]
[1757372762480,3.5081773,215.1,215.08,35.76]
[1757372762680,0.1,215.1,215.09,0.69]
[1757372763388,0.1,215.1,215.08,35.76]
[1757372763565,0.1,215.1,215.08,36.45]
[1757372769084,0.1,215.1,215.09,0.69]
[1757372779684,0.1,215.1,215.09,36.39]
[1757372780910,0.1,215.1,215.09,0.69]
[1757372781085,0.1,215.1,215.09,36.41]
[1757372781407,0.1,215.1,215.09,0.69]
[1757372781594,0.1,215.1,215.09,36.41]
[1757372784816,0.1,215.1,215.09,35.72]
[1757372785392,0.1,215.1,215.09,36.39]
[1757372790831,3.4881773,215.1,215.08,0.03]
[1757372791033,0.75,215.1,215.08,0.03]
[1757372791216,17.06574371,215.09,215.05,0.03]
[1757372791409,3.4701497,215.08,215.06,35.8]
[1757372791605,4.1201497,215.08,215.06,35.8]
[1757372791809,0.65,215.07,215.06,35.8]
[1757372792220,3.3881773,215.07,215.06,35.8]
[1757372792616,3.3881773,215.07,215.06,35.83]
[1757372792930,6.85753261,215.07,215.06,35.83]
[1757372793446,4.11935531,215.07,215.06,35.83]
[1757372793647,2.7381773,215.07,215.06,35.83]
[1757372793814,0.65,215.07,215.06,35.83]
[1757372794443,3.3881773,215.07,215.06,35.83]
[1757372795232,0.65,215.07,215.06,35.83]
[1757372795424,3.3881773,215.07,215.06,0.03]
[1757372795625,3.3881773,215.07,215.06,35.83]
[1757372797423,3.3881773,215.07,215.06,0.03]
[1757372797628,3.3881773,215.07,215.06,30.03]
[1757372797835,6.85705468,215.07,215.06,30.03]
[1757372798639,6.85705468,215.07,215.06,0.03]
[1757372798936,6.85705468,215.07,215.06,35.83]
[1757372799544,6.85705468,215.07,215.06,0.03]
[1757372800643,4.11887738,215.07,215.06,0.03]
[1757372800827,6.85705468,215.07,215.06,0.03]
[1757372804142,20.45264869,215.07,215.06,0.03]
[1757372807950,22.31341672,215.07,215.06,0.03]
[1757372808352,22.30524356,215.07,215.06,0.03]
[1757372809233,14.25559401,215.07,215.06,0.03]
[1757372809436,16.99377131,215.07,215.06,0.03]
[1757372810347,18.59715932,215.07,215.06,0.03]
[1757372811951,22.05608888,215.07,215.06,0.03]
[1757372812254,23.91685692,215.07,215.06,0.03]
[1757372813153,22.05608888,215.07,215.06,0.03]
[1757372815155,18.59715932,215.07,215.06,0.03]
[1757372816050,22.05457032,215.07,215.06,0.03]
[1757372816257,13.59559401,215.02,214.93,0.03]
[1757372816460,21.33457032,215.02,214.93,0.03]
[1757372816635,20.0,215.04,214.93,0.03]
[1757372816636,21.99457032,215.01,214.93,0.03]
[1757372817143,35.9561759,215.01,214.93,0.03]
[1757372817854,31.67461059,215.01,214.93,0.03]
[1757372818040,31.67461059,215.01,214.94,0.68]
[1757372818261,35.9561759,215.01,214.95,0.68]
[1757372819843,21.99457032,215.01,214.95,0.68]
[1757372821141,18.53715932,215.01,214.95,0.68]
[1757372821349,31.98951466,215.01,214.93,0.71]
[1757372821553,31.98951466,215.01,214.93,33.55]
[1757372821750,31.98951466,215.01,214.93,34.23]
[1757372822652,31.98951466,215.01,214.94,0.68]
[1757372822860,31.98951466,215.01,214.93,33.55]
[1757372823057,31.98951466,215.01,214.95,0.68]
[1757372823361,31.98951466,215.01,214.93,33.55]
[1757372823362,31.32951466,215.01,214.97,0.68]
[1757372823543,17.87715932,215.01,214.97,0.68]
[1757372825050,17.87715932,215.01,215.0,10.68]
[1757372825571,17.87715932,215.01,215.0,10.0]
[1757372827765,17.87715932,215.01,215.0,10.68]
[1757372829646,17.87715932,215.01,215.0,10.71]
[1757372829847,17.93715932,215.01,215.0,10.71]
[1757372830048,13.65559401,215.01,215.0,10.71]
[1757372830256,17.93715932,215.01,215.0,10.71]
[1757372835569,21.40440427,215.01,215.0,10.71]
[1757372835763,0.06,215.01,215.0,10.71]
[1757372837266,0.06,215.01,215.0,46.99]
[1757372844801,0.05999943,215.04,215.0,46.99]
[1757372845102,0.05999943,215.04,215.01,0.67]
[1757372847404,0.05999943,215.04,215.03,26.0]
[1757372847575,0.05999943,215.04,215.03,26.67]
[1757372851588,0.05999943,215.04,215.03,76.46559401]
[1757372853378,0.05999943,215.04,215.03,40.26559401]
[1757372853585,0.05999943,215.04,215.03,76.44559401]
[1757372854304,0.05999943,215.04,215.03,62.85]
[1757372854510,0.05999943,215.04,215.03,26.67]
[1757372854677,0.05999943,215.04,215.03,0.67]
[1757372854882,0.05999943,215.04,215.03,62.87]
[1757372859010,0.05999943,215.04,215.03,62.85]
[1757372859712,5.04156474,215.04,215.0,10.03]
[1757372859915,4.28156531,215.02,215.01,27.84]
[1757372860211,0.69,215.02,215.01,27.84]
[1757372861197,4.97156531,215.02,215.01,27.84]
[1757372862313,0.05999943,215.04,215.01,28.55]
[1757372862512,0.05999943,215.04,215.01,27.84]
[1757372862714,0.05999943,215.04,215.02,0.71]
[1757372863106,0.05999943,215.04,215.03,0.71]
[1757372863607,0.05999943,215.04,215.03,26.71]
[1757372864709,0.05999943,215.04,215.0,10.03]
[1757372864887,0.74999943,215.04,215.03,26.0]
[1757372865087,0.05999943,215.04,215.03,26.0]
[1757372865395,13.59559401,215.03,215.0,10.03]
[1757372865600,0.69,215.02,215.01,36.3]
[1757372866308,0.69,215.02,215.0,10.03]
[1757372866513,13.65559344,215.04,215.01,36.36]
[1757372866811,4.28156531,215.02,215.01,36.36]
[1757372867108,4.97156531,215.02,215.01,36.36]
[1757372869600,26.0,215.01,215.0,10.03]
[1757372869806,30.97156531,215.01,215.0,10.03]
[1757372870502,29.43249677,215.01,215.0,10.03]
[1757372870705,32.8953392,215.01,215.0,10.03]
[1757372871393,46.49093321,215.01,215.0,10.03]
[1757372876508,46.49093321,215.01,214.99,9.98]
[1757372876705,3.43249677,215.0,214.99,9.98]
[1757372880614,17.02809078,215.0,214.99,9.98]
[1757372880816,20.48880235,215.0,214.98,0.03]
[1757372881113,2.74249677,214.99,214.98,0.03]
[1757372881617,3.43249677,214.99,214.98,0.03]
[1757372882398,3.43249677,214.99,214.95,0.03]
[1757372882399,26.0,214.96,214.95,0.03]
[1757372882594,31.48499354,214.96,214.95,0.03]
[1757372882797,32.17499354,214.96,214.95,0.03]
[1757372883014,13.59559401,214.95,214.93,0.03]
[1757372883213,19.08058755,214.94,214.93,0.03]
[1757372883407,19.77058755,214.94,214.93,0.03]
[1757372883611,2.74249677,214.94,214.93,0.74]
[1757372883817,2.74249677,214.96,214.93,0.74]
[1757372885016,2.74249677,214.96,214.95,0.03]
[1757372885209,2.74249677,214.96,214.95,0.74]
[1757372885604,16.33809078,214.97,214.95,0.74]
[1757372886008,16.33809078,214.97,214.96,0.71]
[1757372886524,134.5,214.98,214.96,0.71]
[1757372886720,148.09559401,214.98,214.97,0.71]
[1757372886918,150.83809078,214.98,214.95,0.74]
[1757372887112,2.74249677,214.96,214.95,0.03]
[1757372887722,2.74249677,214.97,214.95,0.74]
[1757372887908,2.74249677,214.97,214.96,0.71]
[1757372888719,2.74249677,214.97,214.95,0.03]
[1757372888926,2.74249677,214.96,214.95,0.74]
[1757372889427,2.74249677,214.96,214.95,0.03]
[1757372889717,2.74249677,214.96,214.95,0.74]
[1757372889923,2.74249677,214.96,214.95,0.03]
[1757372890302,148.09559401,214.98,214.95,0.72]
[1757372890599,2.74249677,214.97,214.95,0.72]
[1757372890803,2.74249677,214.97,214.96,0.69]
[1757372891031,0.69,215.02,214.96,0.69]
[1757372891032,134.5,215.03,214.96,0.69]
[1757372891324,2.74249677,215.01,214.96,0.69]
[1757372891521,134.5,215.03,214.96,0.69]
[1757372891723,2.74249677,215.01,214.96,0.69]
[1757372892507,2.74249677,215.01,214.97,36.32]
[1757372892702,2.74249677,215.01,214.98,0.69]
[1757372892908,2.74249677,215.01,214.99,0.69]
[1757372893520,2.74249677,215.02,215.0,0.69]
[1757372893820,134.5,215.03,215.01,0.69]
[1757372894329,2.74249677,215.02,214.99,0.69]
[1757372894804,2.74249677,215.02,215.0,0.69]
[1757372895729,2.74249677,215.02,214.98,0.69]
[1757372895907,2.74249677,215.02,214.99,0.69]
[1757372897017,13.59559401,215.02,215.0,36.28]
[1757372898325,2.74249677,215.01,215.0,36.28]
[1757372900851,3.43249677,215.01,214.95,0.03]
[1757372901126,2.74249677,214.98,214.96,36.26]
[1757372901307,2.74249677,214.98,214.97,0.69]
[1757372901710,13.65559401,215.02,214.97,33.68]
[1757372902035,13.59559401,215.0,214.97,33.68]
[1757372902425,16.33809078,214.98,214.95,0.03]
[1757372902627,16.33809078,214.96,214.95,0.03]
[1757372903013,17.02809078,214.96,214.95,0.03]
[1757372904023,21.68011906,214.96,214.95,0.03]
[1757372904846,20.99011906,214.96,214.95,0.03]
[1757372905423,7.39452505,214.96,214.95,0.03]
[1757372906640,8.08452505,214.96,214.95,0.03]
[1757372907648,36.12031334,214.96,214.95,0.03]
[1757372908733,39.59559401,214.94,214.93,0.03]
[1757372908931,56.77828506,214.94,214.93,0.03]
[1757372909351,57.46828506,214.94,214.93,0.03]
[1757372910039,62.12074621,214.94,214.93,0.03]
[1757372910426,48.40826236,214.94,214.93,0.03]
[1757372910845,51.15075913,214.94,214.93,0.03]
[1757372913550,51.15431681,214.94,214.93,0.03]
[1757372915443,50.46431681,214.94,214.93,0.03]
[1757372919152,46.99055193,214.94,214.93,0.03]
[1757372919452,50.4618642,214.94,214.93,0.03]
[1757372920946,51.1818642,214.94,214.93,0.03]
[1757372924262,62.15185128,214.94,214.93,0.03]
[1757372924865,51.1818642,214.94,214.93,0.03]
[1757372925265,50.4618642,214.94,214.93,0.03]
[1757372925656,51.1818642,214.94,214.93,0.03]
[1757372926052,47.71936743,214.94,214.93,0.03]
[1757372926356,134.56,214.95,214.93,0.7]
[1757372926545,0.06,214.95,214.93,0.7]
[1757372928966,2.80249677,214.95,214.94,0.67]
[1757372929172,2.80249677,214.95,214.94,36.18]
[1757372929371,2.80249677,214.95,214.94,36.85]
[1757372930245,7.45474147,214.95,214.94,36.18]
[1757372932355,4.34549494,214.95,214.94,36.18]
[1757372934374,18.24805516,214.94,214.93,0.03]
[1757372934672,23.2535501,214.94,214.93,0.03]
[1757372934876,26.00151492,214.94,214.93,0.7]
[1757372935061,22.5335501,214.94,214.93,0.7]
[1757372936780,22.5335501,214.94,214.93,0.03]
[1757372937772,26.00305572,214.94,214.93,0.03]
[1757372938363,22.5335501,214.94,214.93,0.03]